bitfinex/quotes_BTCUSD_20240613
["timestamp","ask_amount","ask_price","bid_price","bid_amount"]
[1718306387799,0.10146649,66721.0,66720.0,0.30671246]
[1718306388019,0.10246649,66721.0,66720.0,0.30671246]
[1718306388669,0.10246649,66721.0,66720.0,0.45659246]
[1718306389088,0.10246649,66721.0,66720.0,0.45744246]
[1718306389516,0.1034015,66721.0,66720.0,0.45744246]
[1718306392723,0.1024015,66721.0,66720.0,0.45744246]
[1718306393035,0.08421389,66721.0,66720.0,0.45744246]
[1718306393450,0.1014015,66721.0,66720.0,0.45744246]
[1718306393652,0.08421389,66721.0,66720.0,0.45744246]
[1718306393858,0.08421389,66721.0,66720.0,0.74078888]
[1718306394253,0.08421389,66721.0,66720.0,0.45744246]
[1718306395480,0.08421389,66721.0,66720.0,0.74367406]
[1718306396117,0.00093501,66721.0,66720.0,1.49214794]
[1718306396533,0.00093501,66721.0,66720.0,1.53691154]
[1718306396746,0.00093501,66721.0,66720.0,1.23469766]
[1718306397183,0.00093501,66721.0,66720.0,1.18993406]
[1718306397394,0.00093501,66721.0,66720.0,1.23969766]
[1718306397654,0.00093501,66721.0,66720.0,1.24469766]
[1718306397832,0.00093501,66721.0,66720.0,1.19993406]
[1718306398241,0.00093501,66721.0,66720.0,1.26707947]
[1718306400397,0.00093501,66721.0,66720.0,0.82081947]
[1718306400669,0.00093501,66721.0,66720.0,1.12303335]
[1718306401109,0.32385257,66721.0,66720.0,0.01756246]
[1718306401330,0.33367218,66721.0,66720.0,0.01085]
[1718306401545,0.44577865,66721.0,66720.0,0.01085]
[1718306401974,0.36457865,66721.0,66720.0,0.01085]
[1718306402185,0.36457865,66721.0,66720.0,0.00585]
[1718306402186,0.29241869,66721.0,66720.0,0.00585]
[1718306402395,0.29241869,66721.0,66720.0,0.15573]
[1718306402396,0.16412461,66721.0,66720.0,0.15573]
[1718306402594,0.16412461,66721.0,66720.0,0.35573]
[1718306402595,0.02452461,66721.0,66720.0,0.35573]
[1718306402833,0.02452461,66721.0,66720.0,0.46235352]
[1718306403040,0.02352461,66721.0,66720.0,0.46235352]
[1718306403255,0.02952461,66721.0,66720.0,0.46335352]
[1718306403646,0.02952461,66721.0,66720.0,0.45835352]
[1718306403854,0.03052461,66721.0,66720.0,0.45835352]
[1718306404025,0.03052461,66721.0,66720.0,0.79616619]
[1718306404233,0.03052461,66721.0,66720.0,0.79516619]
[1718306404234,0.02452461,66721.0,66720.0,0.79516619]
[1718306404441,0.00075462,66721.0,66720.0,0.72802078]
[1718306404775,0.00075462,66721.0,66720.0,0.82154799]
[1718306405592,0.02352461,66721.0,66720.0,0.82154799]
[1718306405791,0.02352461,66721.0,66720.0,0.82454799]
[1718306406403,0.02352461,66721.0,66720.0,0.82154799]
[1718306407013,0.00075462,66721.0,66720.0,1.55831459]
[1718306407216,0.00075462,66721.0,66720.0,1.70711459]
[1718306407590,0.00075462,66721.0,66720.0,2.86325641]
[1718306407847,0.00075462,66721.0,66720.0,2.93203654]
[1718306408069,0.00075462,66721.0,66720.0,2.5648731]
[1718306408270,0.00075462,66721.0,66720.0,2.1366491]
[1718306408417,0.00075462,66721.0,66720.0,2.09122019]
[1718306408617,0.00075462,66721.0,66720.0,2.08722019]
[1718306408942,0.00075462,66721.0,66720.0,2.08822019]
[1718306409148,0.00075462,66721.0,66720.0,2.09222019]
[1718306409324,0.00075462,66721.0,66720.0,2.1376491]
[1718306409818,0.00075462,66721.0,66720.0,2.1336491]
[1718306410245,0.00075462,66721.0,66720.0,1.95757815]
[1718306410667,0.00075462,66721.0,66720.0,1.94857815]
[1718306411093,0.00075462,66721.0,66720.0,1.95257815]
[1718306411235,0.00075462,66721.0,66720.0,1.94857815]
[1718306411443,0.00075462,66721.0,66720.0,1.81199459]
[1718306411726,0.00075462,66721.0,66720.0,2.17867059]
[1718306411941,0.00075462,66721.0,66720.0,2.37517915]
[1718306412153,0.00075462,66721.0,66720.0,2.37917915]
[1718306412811,0.00075462,66721.0,66720.0,2.01650315]
[1718306413019,0.00075462,66721.0,66720.0,1.87991959]
[1718306413392,0.00075462,66721.0,66720.0,1.98237759]
[1718306417129,0.00075462,66721.0,66720.0,1.99996726]
[1718306419770,0.00075462,66721.0,66720.0,1.89750926]
[1718306420120,0.00075462,66721.0,66720.0,1.89350926]
[1718306420536,0.00075462,66721.0,66720.0,1.89750926]
[1718306420957,0.00075462,66721.0,66720.0,1.89350926]
[1718306421137,0.00075462,66721.0,66720.0,1.88950926]
[1718306421333,0.00075462,66721.0,66720.0,1.89350926]
[1718306421703,0.00075462,66721.0,66720.0,2.32724926]
[1718306421997,0.00075462,66721.0,66720.0,2.87739326]
[1718306422228,0.19693361,66754.0,66739.0,0.429837]
[1718306422229,0.1415,66740.0,66739.0,0.429837]
[1718306422446,0.1415,66740.0,66739.0,0.57661081]
[1718306422657,0.1415,66740.0,66739.0,0.68317215]
[1718306423048,0.1415,66740.0,66739.0,0.98284615]
[1718306423051,0.02276999,66744.0,66739.0,0.98284615]
[1718306423052,0.02276999,66744.0,66743.0,0.149828]
[1718306423481,0.02276999,66744.0,66743.0,0.25884422]
[1718306423703,0.16446999,66744.0,66743.0,0.25884422]
[1718306425045,0.16646999,66744.0,66743.0,0.25884422]
[1718306425400,0.16646999,66744.0,66743.0,0.55850022]
[1718306425804,0.002,66744.0,66743.0,1.00247615]
[1718306426018,0.004,66744.0,66743.0,1.00247615]
[1718306426231,0.004,66744.0,66743.0,1.31315767]
[1718306426441,0.004,66744.0,66743.0,1.00247615]
[1718306426871,0.002,66744.0,66743.0,0.81642324]
[1718306427072,0.002,66744.0,66743.0,0.82042324]
[1718306427323,0.002,66744.0,66743.0,0.77792015]
[1718306427522,0.002,66744.0,66743.0,1.07757615]
[1718306427729,0.02276999,66748.0,66747.0,0.65191088]
[1718306428008,0.02276999,66748.0,66747.0,0.75191088]
[1718306428161,0.02276999,66749.0,66748.0,0.149817]
[1718306428582,0.02276999,66749.0,66748.0,0.249817]
[1718306428746,0.02276999,66749.0,66748.0,0.55596781]
[1718306428947,0.02276999,66749.0,66748.0,0.25633381]
[1718306429389,0.02276999,66749.0,66748.0,0.26033381]
[1718306429996,0.02276999,66749.0,66748.0,0.26433381]
[1718306430354,0.07290501,66751.0,66749.0,0.15226788]
[1718306430592,0.00940501,66751.0,66749.0,0.99584581]
[1718306430816,0.00940501,66751.0,66749.0,1.00235092]
[1718306431038,0.00940501,66751.0,66749.0,1.06825092]
[1718306431713,0.00940501,66751.0,66749.0,1.56917346]
[1718306431925,0.00940501,66751.0,66749.0,2.44502948]
[1718306432139,0.00940501,66751.0,66749.0,2.78611843]
[1718306432374,0.00940501,66751.0,66749.0,2.69011843]
[1718306432742,0.00940501,66751.0,66749.0,2.46981534]
[1718306432995,0.00940501,66751.0,66749.0,2.46581534]
[1718306433186,0.00940501,66751.0,66749.0,2.46981534]
[1718306434277,0.00940501,66751.0,66749.0,2.42762432]
[1718306434490,0.00940501,66751.0,66749.0,2.42362432]
[1718306434698,0.00940501,66751.0,66749.0,1.47933032]
[1718306434897,0.00940501,66751.0,66749.0,0.75677541]
[1718306435099,0.00940501,66751.0,66749.0,1.01390132]
[1718306435486,0.00940501,66751.0,66749.0,1.31353032]
[1718306436291,0.00940501,66751.0,66749.0,1.01494446]
[1718306436712,0.00940501,66751.0,66749.0,1.3255965]
[1718306437970,0.00940501,66751.0,66749.0,1.6482255]
[1718306438185,0.00940501,66751.0,66749.0,1.66621453]
[1718306438594,0.00940501,66751.0,66749.0,1.97774653]
[1718306439510,0.00940501,66751.0,66749.0,1.66709449]
[1718306439712,0.00940501,66751.0,66749.0,1.9777448]
[1718306441802,0.00940501,66751.0,66749.0,1.9871498]
[1718306442236,0.00940501,66751.0,66749.0,1.96916077]
[1718306443388,0.00940501,66751.0,66749.0,2.18627078]
[1718306443594,0.00940501,66751.0,66749.0,2.16167078]
[1718306443807,0.00940501,66751.0,66749.0,2.33947078]
[1718306444602,0.00940501,66751.0,66749.0,2.43947078]
[1718306444950,0.00940501,66751.0,66749.0,2.45773665]
[1718306445347,0.00940501,66751.0,66749.0,2.52003665]
[1718306446426,2e-08,66753.0,66752.0,1.17833989]
[1718306446632,2e-08,66753.0,66752.0,2.05856115]
[1718306446838,2e-08,66753.0,66752.0,4.43605349]
[1718306447250,2e-08,66753.0,66752.0,2.07206638]
[1718306447656,0.15670501,66768.0,66752.0,2.07206638]
[1718306447657,5e-08,66757.0,66756.0,0.29954389]
[1718306447860,5e-08,66757.0,66756.0,1.33536082]
[1718306448107,5e-08,66757.0,66756.0,1.65700737]
[1718306448312,5e-08,66757.0,66756.0,2.19839439]
[1718306448516,5e-08,66757.0,66756.0,2.34089748]
[1718306448927,5e-08,66757.0,66756.0,2.23819748]
[1718306449160,5e-08,66757.0,66756.0,2.24219748]
[1718306449372,5e-08,66757.0,66756.0,2.23819748]
[1718306449849,5e-08,66757.0,66756.0,2.24219748]
[1718306450064,5e-08,66757.0,66756.0,2.39999748]
[1718306450273,0.00940501,66768.0,66756.0,2.39999748]
[1718306450274,1e-08,66768.0,66767.0,1.12436689]
[1718306450474,1e-08,66768.0,66767.0,2.07298613]
[1718306450682,1e-08,66768.0,66767.0,3.33768426]
[1718306450882,1e-08,66768.0,66767.0,2.46821426]
[1718306451096,1e-08,66768.0,66767.0,2.51287188]
[1718306451532,1e-08,66768.0,66767.0,2.47036879]
[1718306451748,1e-08,66768.0,66767.0,2.42817777]
[1718306451947,1e-08,66768.0,66767.0,2.63597777]
[1718306452181,2e-08,66771.0,66770.0,1.04838089]
[1718306452372,2e-08,66771.0,66770.0,1.69745113]
[1718306452579,2e-08,66771.0,66770.0,1.67946376]
[1718306452804,2e-08,66771.0,66770.0,1.65056376]
[1718306453169,2e-08,66771.0,66770.0,1.71477274]
[1718306453578,2e-08,66771.0,66770.0,1.82165373]
[1718306453786,2e-08,66771.0,66770.0,1.92165373]
[1718306453989,2e-08,66771.0,66770.0,1.82165373]
[1718306454175,2e-08,66771.0,66770.0,1.82565373]
[1718306454387,2e-08,66771.0,66770.0,1.54107974]
[1718306454577,2e-08,66771.0,66770.0,1.24540872]
[1718306454956,2e-08,66771.0,66770.0,0.83299372]
[1718306455157,2e-08,66771.0,66770.0,0.81787841]
[1718306455382,2e-08,66771.0,66770.0,0.52234341]
[1718306455740,2e-08,66771.0,66770.0,0.51834341]
[1718306455965,2e-08,66771.0,66770.0,0.51434341]
[1718306456167,2e-08,66771.0,66770.0,0.52234341]
[1718306456580,2e-08,66771.0,66770.0,0.54010635]
[1718306457023,2e-08,66771.0,66770.0,0.83564135]
[1718306457242,2e-08,66771.0,66770.0,0.83964135]
[1718306457680,2e-08,66771.0,66770.0,0.53765247]
[1718306457920,2e-08,66771.0,66770.0,0.73718747]
[1718306459048,2e-08,66771.0,66770.0,0.83718747]
[1718306459896,2e-08,66771.0,66770.0,0.53765247]
[1718306460396,2e-08,66771.0,66770.0,0.26324154]
[1718306460397,0.01718763,66771.0,66770.0,0.26324154]
[1718306460618,0.15388763,66771.0,66770.0,0.26324154]
[1718306461491,0.15388763,66771.0,66770.0,0.41300854]
[1718306461904,0.15388763,66771.0,66770.0,0.26324154]
[1718306462960,0.17665762,66771.0,66770.0,0.11892161]
[1718306463173,0.36415762,66771.0,66770.0,0.01892161]
[1718306463812,0.36415762,66771.0,66770.0,0.004]
[1718306464018,0.36415762,66771.0,66759.0,0.08]
[1718306464019,0.1780576,66760.0,66759.0,0.08]
[1718306464404,0.1780576,66760.0,66759.0,0.08990707]
[1718306464647,0.1780576,66760.0,66759.0,0.08]
[1718306464862,0.1780576,66760.0,66759.0,0.08990707]
[1718306465053,0.1880576,66760.0,66759.0,0.00990707]
[1718306465470,0.1861576,66753.0,66752.0,0.08]
[1718306465795,0.1861576,66753.0,66752.0,0.08990707]
[1718306467829,0.1881576,66753.0,66752.0,0.08990707]
[1718306468010,0.1861576,66753.0,66752.0,0.08990707]
[1718306468593,0.1861576,66753.0,66752.0,0.19290707]
[1718306470455,0.1861576,66753.0,66752.0,0.18990707]
[1718306470676,0.16896999,66753.0,66752.0,0.33971507]
[1718306470897,0.16896999,66753.0,66752.0,0.19490707]
[1718306471121,0.1861576,66753.0,66752.0,0.19890707]
[1718306471343,0.1861576,66753.0,66752.0,0.18990707]
[1718306471762,0.1861576,66753.0,66752.0,0.19390707]
[1718306472001,0.1861576,66753.0,66752.0,0.19290707]
[1718306472419,0.1861576,66753.0,66752.0,0.09290707]
[1718306473724,0.1861576,66753.0,66752.0,0.08990707]
[1718306474203,0.1861576,66753.0,66752.0,0.09490707]
[1718306474417,0.1861576,66753.0,66752.0,0.09390707]
[1718306474630,0.1861576,66753.0,66752.0,0.08990707]
[1718306474828,0.1881576,66753.0,66752.0,0.08990707]
[1718306475036,0.1861576,66753.0,66752.0,0.08990707]
[1718306475457,0.1861576,66753.0,66752.0,0.09090707]
[1718306475889,0.1861576,66753.0,66752.0,0.09490707]
[1718306476856,0.1861576,66753.0,66752.0,0.09390707]
[1718306477063,0.1961576,66753.0,66752.0,0.01390707]
[1718306477264,0.1961576,66753.0,66752.0,0.01590707]
[1718306477536,0.1961576,66753.0,66752.0,0.01390707]
[1718306477745,0.1961576,66753.0,66752.0,0.00990707]
[1718306478101,0.0399576,66750.0,66749.0,0.1]
[1718306480987,0.0399576,66750.0,66749.0,0.102]
[1718306482460,0.0399576,66750.0,66749.0,0.002]
[1718306483096,0.0399576,66750.0,66749.0,0.01200392]
[1718306483371,0.0399576,66750.0,66749.0,0.002]
[1718306483582,0.0399576,66750.0,66749.0,0.01200392]
[1718306483800,0.0399576,66750.0,66749.0,0.002]
[1718306484216,0.0399576,66750.0,66749.0,0.01200392]
[1718306485581,0.0399576,66750.0,66749.0,0.01286392]
[1718306491039,0.1110576,66750.0,66749.0,0.01286392]
[1718306491241,0.1210576,66750.0,66749.0,0.01286392]
[1718306493621,0.12087735,66750.0,66749.0,0.01286392]
[1718306494453,0.19617735,66750.0,66749.0,0.01286392]
[1718306494667,0.26727735,66750.0,66749.0,0.01286392]
[1718306494885,0.19617735,66750.0,66749.0,0.01286392]
[1718306495092,0.26727735,66750.0,66749.0,0.01286392]
[1718306495318,0.19617735,66750.0,66749.0,0.01086392]
[1718306495521,0.26727735,66750.0,66749.0,0.01086392]
[1718306495731,0.27027735,66750.0,66749.0,0.00086]
[1718306496130,0.27427735,66750.0,66749.0,0.00086]
[1718306496364,0.27200812,66750.0,66749.0,0.00086]
[1718306497523,0.20090812,66750.0,66749.0,0.00086]
[1718306497730,0.19090812,66750.0,66749.0,0.00086]
[1718306497900,0.26200812,66750.0,66749.0,0.00086]
[1718306499145,0.27200812,66750.0,66749.0,0.00086]
[1718306500482,0.26200812,66750.0,66749.0,0.00086]
[1718306500678,0.27200812,66750.0,66749.0,0.00086]
[1718306501346,0.26200812,66750.0,66749.0,0.00086]
[1718306501879,0.27200812,66750.0,66749.0,0.00086]
[1718306504263,0.26200812,66750.0,66749.0,0.00086]
[1718306505042,0.27200812,66750.0,66749.0,0.00086]
[1718306508654,0.19090812,66750.0,66749.0,0.00086]
[1718306508859,0.27200812,66750.0,66749.0,0.00086]
[1718306509067,0.26200812,66750.0,66749.0,0.00086]
[1718306509288,0.27200812,66750.0,66749.0,0.00086]
[1718306509919,0.20090812,66750.0,66749.0,0.00086]
[1718306510129,0.27200812,66750.0,66749.0,0.00086]
[1718306510340,0.19090812,66750.0,66749.0,0.00086]
[1718306510560,0.26200812,66750.0,66749.0,0.00086]
[1718306510771,0.26200812,66750.0,66749.0,0.01088116]
[1718306512062,0.26200812,66750.0,66749.0,0.00086]
[1718306512278,0.19090812,66750.0,66749.0,0.00086]
[1718306512486,0.26200812,66750.0,66749.0,0.00086]
[1718306512933,0.26200812,66750.0,66749.0,0.01088116]
[1718306513133,0.26200812,66750.0,66749.0,0.00086]
[1718306513348,0.26200812,66750.0,66749.0,0.01088116]
[1718306513563,0.26200812,66750.0,66749.0,0.01089865]
[1718306515236,0.02732051,66750.0,66749.0,0.16071265]
[1718306515477,0.02732051,66750.0,66749.0,0.32491265]
[1718306515683,0.02732051,66750.0,66749.0,0.42957947]
[1718306516309,0.007,66750.0,66749.0,1.59982794]
[1718306516529,0.007,66750.0,66749.0,1.9075705]
[1718306516974,0.007,66750.0,66749.0,2.31884396]
[1718306517388,0.004,66750.0,66749.0,2.12376396]
[1718306517606,0.004,66750.0,66749.0,3.25366996]
[1718306517847,0.004,66750.0,66749.0,3.25866996]
[1718306518064,0.02032051,66762.0,66761.0,0.349788]
[1718306518280,0.02032051,66762.0,66761.0,0.491388]
[1718306518473,0.02032051,66762.0,66761.0,0.50150421]
[1718306519750,0.13265996,66769.0,66763.0,0.299566]
[1718306519751,0.02032051,66769.0,66763.0,0.299566]
[1718306519977,0.02032051,66769.0,66768.0,0.149772]
[1718306520203,0.02032051,66769.0,66768.0,0.249772]
[1718306520419,0.03750812,66769.0,66768.0,0.25988821]
[1718306520636,0.03750812,66769.0,66768.0,0.01011621]
[1718306520855,0.01718761,66759.0,66757.0,0.229794]
[1718306521058,0.01718761,66759.0,66758.0,0.21796702]
[1718306521263,0.01718761,66759.0,66758.0,0.1]
[1718306521488,0.01718761,66759.0,66758.0,0.249794]
[1718306521715,0.01718761,66759.0,66758.0,0.1]
[1718306521978,0.02032051,66760.0,66758.0,0.1]
[1718306522844,0.01718761,66759.0,66758.0,0.253794]
[1718306523298,0.01718761,66759.0,66758.0,0.249794]
[1718306523720,0.01718761,66759.0,66758.0,0.253794]
[1718306524164,0.01718761,66759.0,66758.0,0.258794]
[1718306524595,0.01718761,66759.0,66758.0,0.109]
[1718306524596,0.03750812,66759.0,66758.0,0.109]
[1718306524790,0.03750812,66759.0,66758.0,0.009]
[1718306525188,0.03750812,66759.0,66758.0,0.005]
[1718306525429,0.03750812,66759.0,66758.0,0.009]
[1718306525698,0.02032051,66759.0,66758.0,0.009]
[1718306525926,0.02032051,66759.0,66757.0,0.08]
[1718306526148,0.02032051,66759.0,66758.0,0.003]
[1718306526979,0.02032051,66759.0,66757.0,0.08]
[1718306527181,0.02032051,66759.0,66758.0,0.149794]
[1718306527334,0.02032051,66759.0,66758.0,0.254794]
[1718306527534,0.03750812,66759.0,66758.0,0.254794]
[1718306527736,0.03750812,66759.0,66758.0,0.249794]
[1718306528174,0.03750812,66759.0,66758.0,0.25983906]
[1718306528376,0.03750812,66759.0,66758.0,0.11004506]
[1718306528576,0.03750812,66759.0,66758.0,0.01004506]
[1718306528754,0.03750812,66759.0,66758.0,0.11004506]
[1718306529144,0.03750812,66759.0,66758.0,0.11504506]
[1718306529356,0.09860812,66759.0,66758.0,0.11504506]
[1718306529573,0.18040812,66759.0,66758.0,0.11504506]
[1718306529784,0.18040812,66759.0,66758.0,0.01804506]
[1718306530449,0.18040812,66759.0,66758.0,0.11804506]
[1718306530660,0.18040812,66759.0,66758.0,0.26783906]
[1718306530873,0.03750812,66759.0,66758.0,0.26783906]
[1718306531541,0.03750812,66759.0,66758.0,0.11804506]
[1718306531776,0.03750812,66759.0,66758.0,0.01804506]
[1718306534138,0.03750812,66759.0,66758.0,0.16783906]
[1718306534566,0.03750812,66759.0,66758.0,0.26783906]
[1718306542122,0.03750812,66759.0,66758.0,0.16783906]
[1718306542296,0.03750812,66759.0,66758.0,0.26783906]
[1718306545049,0.02032051,66766.0,66763.0,0.3432]
[1718306545265,0.009416,66772.0,66768.0,0.08425388]
[1718306545498,0.009416,66772.0,66769.0,0.27681993]
[1718306545702,0.009416,66772.0,66769.0,1.13139699]
[1718306545906,0.009416,66772.0,66769.0,1.44035299]
[1718306546105,0.009416,66772.0,66769.0,1.47033299]
[1718306546307,0.009416,66772.0,66769.0,1.54773299]
[1718306546633,0.009416,66772.0,66769.0,1.98983248]
[1718306546844,0.009416,66772.0,66769.0,1.87149426]
[1718306547051,0.009416,66772.0,66769.0,2.11107748]
[1718306547241,0.009416,66772.0,66769.0,2.13220187]
[1718306547242,0.001946,66770.0,66769.0,2.13220187]
[1718306547469,0.001946,66770.0,66769.0,1.38296827]
[1718306547602,0.000946,66770.0,66769.0,1.24573911]
[1718306547807,0.000946,66770.0,66769.0,1.54773299]
[1718306548025,0.000946,66770.0,66769.0,1.55173299]
[1718306548343,0.000946,66770.0,66769.0,1.54773299]
[1718306548524,0.000946,66770.0,66769.0,1.25994163]
[1718306548736,0.000946,66770.0,66769.0,1.55527392]
[1718306548933,0.000946,66770.0,66769.0,1.19184163]
[1718306549160,0.000946,66770.0,66769.0,1.54788922]
[1718306549717,0.000946,66770.0,66769.0,1.54288922]
[1718306549960,0.000946,66770.0,66769.0,1.47178922]
[1718306550159,0.000946,66770.0,66769.0,1.54788922]
[1718306550384,0.000946,66770.0,66769.0,1.54543534]
[1718306550704,0.000946,66770.0,66769.0,1.54243534]
[1718306550911,0.000946,66770.0,66769.0,1.54643534]
[1718306552182,0.000946,66770.0,66769.0,1.47533534]
[1718306552381,0.000946,66770.0,66769.0,1.44535534]
[1718306552579,0.000946,66770.0,66769.0,1.51890922]
[1718306553285,0.000946,66770.0,66769.0,1.23396163]
[1718306553517,0.000946,66770.0,66769.0,1.22650775]
[1718306553715,0.000946,66770.0,66769.0,1.22896163]
[1718306553852,0.000946,66770.0,66769.0,1.22996163]
[1718306554291,0.000946,66770.0,66769.0,1.23150775]
[1718306554702,0.000946,66770.0,66769.0,1.22650775]
[1718306555704,0.000946,66770.0,66769.0,0.92696775]
[1718306556568,0.000946,66770.0,66769.0,0.31752775]
[1718306556769,0.000946,66770.0,66769.0,0.32252775]
[1718306556957,0.01813361,66770.0,66769.0,0.32252775]
[1718306557315,0.01813361,66770.0,66769.0,0.31752775]
[1718306557748,0.01813361,66770.0,66769.0,0.31311175]
[1718306558155,0.01813361,66770.0,66769.0,0.41311175]
[1718306558834,0.01813361,66770.0,66769.0,0.40911175]
[1718306559238,0.000946,66770.0,66769.0,0.40811175]
[1718306559674,0.000946,66770.0,66769.0,0.40911175]
[1718306559885,0.000946,66770.0,66769.0,0.41211175]
[1718306560096,0.000946,66770.0,66769.0,0.40711175]
[1718306560317,0.01813361,66770.0,66769.0,0.40411175]
[1718306560726,0.01813361,66770.0,66769.0,0.41311175]
[1718306562010,0.01813361,66770.0,66769.0,0.40911175]
[1718306562502,0.01813361,66770.0,66769.0,0.40811175]
[1718306562702,0.01813361,66770.0,66769.0,0.40911175]
[1718306563136,0.01813361,66770.0,66769.0,0.40811175]
[1718306563454,0.01813361,66770.0,66769.0,0.41311175]
[1718306568646,0.01813361,66770.0,66769.0,0.40411175]
[1718306569080,0.01813361,66770.0,66769.0,0.41311175]
[1718306569528,0.01813361,66770.0,66769.0,0.40411175]
[1718306569937,0.01813361,66770.0,66769.0,0.41311175]
[1718306570371,0.01813361,66770.0,66769.0,0.40911175]
[1718306570778,0.01813361,66770.0,66769.0,0.41311175]
[1718306571574,0.01813361,66770.0,66769.0,0.40811175]
[1718306572121,0.01813361,66770.0,66769.0,0.11402182]
[1718306572320,0.01813361,66770.0,66769.0,0.01402182]
[1718306572754,0.03845412,66770.0,66769.0,0.01402182]
[1718306572959,0.03845412,66770.0,66769.0,0.01702182]
[1718306573132,0.03845412,66770.0,66769.0,0.01302182]
[1718306573351,0.03845412,66770.0,66769.0,0.01002182]
[1718306573668,0.03845412,66770.0,66769.0,0.001]
[1718306573837,0.03945412,66770.0,66769.0,0.01092529]
[1718306574250,0.03945412,66770.0,66769.0,0.16069529]
[1718306574452,0.03945412,66770.0,66769.0,0.26069529]
[1718306575138,0.03845412,66770.0,66769.0,0.25969529]
[1718306575589,0.03945412,66770.0,66769.0,0.3218146]
[1718306575800,0.03845412,66770.0,66769.0,0.3218146]
[1718306576199,0.03945412,66770.0,66769.0,0.3218146]
[1718306576445,0.03945412,66770.0,66769.0,0.3228146]
[1718306576556,0.03845412,66770.0,66769.0,0.3228146]
[1718306576758,0.03845412,66770.0,66769.0,0.3218146]
[1718306577007,0.03845412,66770.0,66769.0,0.3258146]
[1718306578319,0.03845412,66770.0,66769.0,0.3308146]
[1718306581542,0.03845412,66770.0,66769.0,0.1810446]
[1718306581747,0.03845412,66770.0,66769.0,0.2308146]
[1718306581942,0.03845412,66770.0,66769.0,0.3258146]
[1718306582143,0.03845412,66770.0,66769.0,0.1720446]
[1718306582347,0.03845412,66770.0,66769.0,0.3268146]
[1718306582546,0.03845412,66770.0,66769.0,0.3288146]
[1718306582757,0.03845412,66770.0,66769.0,0.3238146]
[1718306582962,0.03845412,66770.0,66769.0,0.3218146]
[1718306583124,0.04045412,66770.0,66769.0,0.1720446]
[1718306583333,0.04145412,66770.0,66769.0,0.0720446]
[1718306583532,0.04045412,66770.0,66769.0,0.0720446]
[1718306584361,0.03845412,66770.0,66769.0,0.2218146]
[1718306584567,0.03845412,66770.0,66769.0,0.3218146]
[1718306584966,0.03845412,66770.0,66769.0,0.1750446]
[1718306585169,0.03845412,66770.0,66769.0,0.1740446]
[1718306585580,0.03845412,66770.0,66769.0,0.0760446]
[1718306585781,0.03845412,66770.0,66769.0,0.0740446]
[1718306586336,0.03945412,66770.0,66769.0,0.0720446]
[1718306586767,0.11055412,66770.0,66769.0,0.0720446]
[1718306587381,0.18765412,66770.0,66769.0,0.0720446]
[1718306588038,0.18665412,66770.0,66769.0,0.0720446]
[1718306588241,0.11555412,66770.0,66769.0,0.0720446]
[1718306588455,0.11655412,66770.0,66769.0,0.0730446]
[1718306588849,0.11655412,66770.0,66769.0,0.0720446]
[1718306589197,0.11855412,66770.0,66769.0,0.0720446]
[1718306589745,0.11655412,66770.0,66769.0,0.0720446]
[1718306589914,0.11555412,66770.0,66769.0,0.0720446]
[1718306590886,0.11555412,66770.0,66769.0,0.2218146]
[1718306590887,0.02126651,66770.0,66769.0,0.2218146]
[1718306591115,0.02226651,66770.0,66769.0,0.3218146]
[1718306591502,0.03945412,66770.0,66769.0,0.3218146]
[1718306591944,0.03845412,66770.0,66769.0,0.3218146]
[1718306592352,0.03945412,66770.0,66769.0,0.3228146]
[1718306593959,0.02226651,66770.0,66769.0,0.3228146]
[1718306594424,0.001946,66770.0,66769.0,1.54728293]
[1718306594644,0.001946,66770.0,66769.0,1.87412237]
[1718306594865,0.001946,66770.0,66769.0,1.54728293]
[1718306595329,0.001946,66770.0,66769.0,1.17664293]
[1718306595562,0.001946,66770.0,66769.0,1.24774293]
[1718306595743,0.000946,66770.0,66769.0,1.25572901]
[1718306595980,0.000946,66770.0,66769.0,1.26472901]
[1718306596472,0.000946,66770.0,66769.0,1.25574293]
[1718306596708,0.000946,66770.0,66769.0,1.27354584]
[1718306596910,0.000946,66770.0,66769.0,1.29654584]
[1718306597114,0.000946,66770.0,66769.0,1.22544584]
[1718306597354,0.000946,66770.0,66769.0,1.29654584]
[1718306597589,0.000946,66770.0,66769.0,1.22544584]
[1718306597816,0.000946,66770.0,66769.0,1.29654584]
[1718306600284,0.000946,66770.0,66769.0,2.44601884]
[1718306600483,2e-08,66771.0,66769.0,2.44601884]
[1718306600484,2e-08,66771.0,66770.0,1.40840037]
[1718306600684,0.009416,66772.0,66770.0,1.40840037]
[1718306600685,0.00224448,66772.0,66771.0,0.74832837]
[1718306600963,0.00224448,66772.0,66771.0,1.34447968]
[1718306601145,0.00224448,66772.0,66771.0,3.89063816]
[1718306601351,0.00224448,66772.0,66771.0,3.87713174]
[1718306601506,0.00224448,66772.0,66771.0,4.77572474]
[1718306601718,0.00224448,66772.0,66771.0,4.67572474]
[1718306601945,0.00224448,66772.0,66771.0,4.4863609]
[1718306602190,0.00224448,66772.0,66771.0,4.34428974]
[1718306602317,0.00224448,66772.0,66771.0,4.34058974]
[1718306602513,0.00224448,66772.0,66771.0,4.34458974]
[1718306602738,0.00224448,66772.0,66771.0,4.44458974]
[1718306603351,0.00224448,66772.0,66771.0,3.97013396]
[1718306603567,0.00224448,66772.0,66771.0,4.14123396]
[1718306605122,0.00224448,66772.0,66771.0,4.27557465]
[1718306605336,0.00224448,66772.0,66771.0,4.14123396]
[1718306605540,0.00224448,66772.0,66771.0,4.02781796]
[1718306605876,0.00224448,66772.0,66771.0,4.16215865]
[1718306606324,0.00224448,66772.0,66771.0,3.57317826]
[1718306606530,0.00224448,66772.0,66771.0,2.17648425]
[1718306606733,0.00224448,66772.0,66771.0,2.21914905]
[1718306606905,0.00224448,66772.0,66771.0,2.24758242]
[1718306607116,0.00224448,66772.0,66771.0,1.94803642]
[1718306607320,0.00224448,66772.0,66771.0,1.94003642]
[1718306607521,0.00224448,66772.0,66771.0,1.96998642]
[1718306607728,0.00224448,66772.0,66771.0,1.90688642]
[1718306607893,0.00224448,66772.0,66771.0,1.97798642]
[1718306608093,0.00224448,66772.0,66771.0,2.37351742]
[1718306608348,0.00224448,66772.0,66771.0,2.25760126]
[1718306608499,0.00224448,66772.0,66771.0,2.16160126]
[1718306609100,0.00224448,66772.0,66771.0,2.16560126]
[1718306609972,0.00224448,66772.0,66771.0,2.16160126]
[1718306610340,0.00224448,66772.0,66771.0,2.09050126]
[1718306610549,0.00224448,66772.0,66771.0,2.16160126]
[1718306610748,0.00224448,66772.0,66771.0,2.16560126]
[1718306611615,0.00224448,66772.0,66771.0,2.32879481]
[1718306612493,0.00224448,66772.0,66771.0,2.25769481]
[1718306612699,0.00224448,66772.0,66771.0,2.32879481]
[1718306613530,0.00224448,66772.0,66771.0,2.44062966]